fUST/lending_fUST_20260215
["ID","MTS","AMOUNT","RATE_DAILY","PERIOD"]
[405377128,1771095038091,-192.44,0.000168,2]
[405377129,1771095038101,-192.44,0.000168,2]
[405377130,1771095038111,-192.44,0.000168,2]
[405377131,1771095038120,-192.44,0.000169,2]
[405377132,1771095038130,-192.44,0.000169,2]
[405377133,1771095038141,-192.44,0.000169,2]
[405377134,1771095038150,-192.44,0.00017,2]
[405377135,1771095038161,-192.44,0.00017,2]
[405377136,1771095038171,-192.44,0.00017,2]
[405377137,1771095038180,-192.44,0.000171,2]
[405377138,1771095038191,-192.44,0.000171,2]
[405377139,1771095038200,-192.44,0.000171,2]
[405377140,1771095038211,-192.44,0.000172,2]
[405377141,1771095038221,-177.0,0.00017725,2]
[405377142,1771095038231,-204.0,0.00019725,2]
[405377143,1771095038242,-231.0,0.00021725,2]
[405377144,1771095038252,-258.0,0.00023725,2]
[405377145,1771095038261,-285.0,0.00025725,2]
[405377146,1771095038271,-312.0,0.00027725,2]
[405377147,1771095038281,-1123.3961774,0.00028435,2]
[405377148,1771095038291,-12825.85342755,0.00029299,2]
[405377149,1771095038301,-161.52,0.000293,7]
[405377150,1771095038310,-11500.98386217,0.00029401,2]
[405377151,1771095038324,-2860.2267586,0.00029401,2]
[405377152,1771095038333,-321.0,0.00029405,2]
[405377153,1771095038342,-1022.70154648,0.00029425,28]
[405377154,1771095038353,-200.27742259,0.00029434,71]
[405377155,1771095038362,-1022.70154648,0.00029474,30]
[405377156,1771095038372,-162.61470123,0.00029486,2]
[405377157,1771095038381,-151.88356829,0.00029486,2]
[405377158,1771095038391,-192.0,0.00029487,2]
[405377159,1771095038400,-171.99,0.000295,7]
[405377160,1771095038410,-1000.0,0.00029501,2]
[405377161,1771095038420,-1022.70154648,0.00029524,32]
[405377162,1771095038429,-1022.70154648,0.00029573,35]
[405377163,1771095038438,-200.27742259,0.00029602,79]
[405377164,1771095038448,-1022.70154648,0.00029623,37]
[405377165,1771095038457,-1022.70154648,0.00029672,39]
[405377166,1771095038467,-4438.01068062,0.000297,2]
[405377167,1771095038476,-1022.70154648,0.00029722,41]
[405377168,1771095038486,-339.0,0.00029725,2]
[405377169,1771095038496,-200.27742259,0.0002977,86]
[405377170,1771095038506,-1022.70154648,0.00029772,43]
[405377171,1771095038515,-1874.39060294,0.000298,2]
[405377655,1771095044044,-557.83,0.000298,2]
[405377833,1771095045888,-560.0,0.000298,2]
[405378231,1771095265819,25000.0,0.000175,3]
[405378232,1771095279230,1568.62,0.00017,3]
[405378233,1771095435671,500.0,0.00013273,2]
[405378234,1771095435722,1000.0,0.00013821,2]
[405378235,1771095435775,1500.0,0.00014368,2]
[405378236,1771095435829,2000.0,0.00014916,2]
[405378237,1771095442261,300.0,0.00013673,2]
[405378238,1771095442317,600.0,0.00014221,2]
[405378239,1771095442368,900.0,0.00014768,2]
[405378240,1771095442428,1200.0,0.00015316,2]
[405378241,1771095447873,500.0,0.00013273,2]
[405378242,1771095447919,760.45283244,0.00013821,2]
[405378243,1771095543479,501.06156266,0.00013273,2]
[405378245,1771095562442,522.00461846,0.00013273,2]
[405378246,1771095562482,300.0,0.00013673,2]
[405378247,1771095562534,300.0,0.00014221,2]
[405378248,1771095604827,192.4,0.000156,2]
[405378249,1771095727197,500.0,0.00013699,2]
[405378250,1771095727254,500.0,0.00014247,2]
[405378252,1771095906222,500.0,0.00013273,2]
[405378283,1771096231910,-499.99956582,0.0001895,2]
[405378284,1771096231920,-150.0,0.00019046,2]
[405378286,1771096231929,-3817.87141933,0.00019141,2]
[405378288,1771096231940,-1182.12858067,0.00019141,2]
[405378290,1771096231950,-5000.0,0.00019334,2]
[405378291,1771096231962,-177.0,0.00021046,2]
[405378293,1771096231972,-204.0,0.00023046,2]
[405378294,1771096231982,-152.0,0.00025,7]
[405378295,1771096231992,-221.36256321,0.00025046,2]
[405378298,1771096232002,-152.0,0.0002589,7]
[405378299,1771096232013,-500.0,0.00026573,2]
[405378300,1771096232023,-42.43236975,0.00026573,2]
[405378301,1771096232039,-292.85643134,0.00026573,2]
[405378302,1771096232053,-107.14356866,0.00026573,2]
[405378321,1771096237942,-392.85643134,0.00026573,2]
[405378322,1771096237952,-500.0,0.00026573,2]
[405378323,1771096237962,-248.14356866,0.00026573,2]
[405378372,1771096246028,-251.85643134,0.00026573,2]
[405378373,1771096246040,-454.75270986,0.00026573,2]
[405378386,1771097349102,-216.78297761,0.00016,2]
[405378387,1771097349122,-4118.98170118,0.00017,2]
[405378388,1771097349143,-500.0,0.00017999,2]
[405378389,1771097349174,-500.0,0.00017999,2]
[405378390,1771097349196,-500.0,0.00017999,2]
[405378391,1771097349219,-500.0,0.00017999,2]
[405378392,1771097349243,-389.44346176,0.00017999,2]
[405378393,1771097349267,-439.35964002,0.00017999,2]
[405378394,1771097349291,-500.0,0.00017999,2]
[405378395,1771097349313,-500.0,0.00017999,2]
[405378396,1771097349335,-500.0,0.00017999,2]
[405378397,1771097349364,-500.0,0.00017999,2]
[405378398,1771097349388,-500.0,0.00017999,2]
[405378399,1771097349412,-559.69724641,0.00017999,2]
[405378400,1771097349433,-15221.220109,0.00018,2]
[405378401,1771097354128,-25731.66510289,0.00018,2]
[405378402,1771097354150,-456.0075638,0.00024,2]
[405378403,1771097354172,-364.59466729,0.00024503,3]
[405378404,1771097354193,-152.0,0.00025,7]
[405378405,1771097354213,-256.0,0.000251,7]
[405378406,1771097354233,-640.57143456,0.000261,7]
[405378422,1771097431924,-359.42856544,0.000261,7]
[405378424,1771097431933,-5.16610185,0.00027703,2]
[405378441,1771097438037,-1631.16829345,0.00027703,2]
[405378442,1771097438050,-857.0,0.00029328,10]
[405378443,1771097438062,-743.00766454,0.00029752,2]
[405378444,1771097438074,-228.8552496,0.00029799,2]
[405378445,1771097438086,-382.15107111,0.00029799,2]
[405378446,1771097438099,-10349.77939706,0.000298,2]
[405378447,1771097438109,-151.0,0.000298,7]
[405378448,1771097438120,-173.0,0.00029808,36]
[405378449,1771097438133,-4000.0,0.0002981,2]
[405378450,1771097438145,-316.11850162,0.00029819,56]
[405378451,1771097438156,-1022.70154648,0.00029821,46]
[405378452,1771097438168,-1022.70154648,0.00029871,48]
[405378453,1771097438180,-162.08829449,0.0002989,2]
[405378454,1771097438196,-947.99100211,0.0002989,2]
[405378455,1771097438209,-3653.42,0.0002989,10]
[405378456,1771097438221,-161.52,0.000299,7]
[405378457,1771097438233,-171.99,0.000299,7]
[405378458,1771097438244,-292.1067133,0.000299,2]
[405378495,1771097440196,-11439.13249232,0.000299,2]
[405378496,1771097440212,-3789.85880062,0.000299,2]
[405378503,1771097445564,-559.048,0.000299,2]
[405378504,1771097445576,-464.75576433,0.000299,2]
[405378511,1771097466560,151.0,0.00013273,2]
[405378529,1771098431113,-168.0,0.00021463,2]
[405378530,1771098431134,-168.0,0.00022328,2]
[405378531,1771098431154,-131.36605352,0.00022563,2]
[405378532,1771098437801,-36.63394648,0.00022563,2]
[405378533,1771098437827,-160.0,0.00029166,3]
[405378534,1771098437852,-310.32023498,0.00029891,2]
[405379956,1771098646451,-51.9295615,0.00027954,7]
[405380060,1771098647870,-448.0704385,0.00027954,7]
[405380062,1771098647880,-743.00766454,0.00029876,2]
[405380064,1771098647889,-6206.21,0.0002989,10]
[405380066,1771098647899,-5171.84,0.0002989,10]
[405380068,1771098647908,-932.52935517,0.00029891,2]
[405380070,1771098647917,-375.6446736,0.000299,2]
[405380072,1771098647926,-64830.37761644,0.000299,2]
[405380075,1771098647941,-465.59078345,0.000299,2]
[405380725,1771099627138,-169.88664371,0.00028396,2]
[405380726,1771099627160,-16.70877444,0.00029873,2]
[405380748,1771099832321,-13499.37210128,0.000297,2]
[405380755,1771099832374,-369.60259671,0.000297,2]
[405380819,1771099838574,-1043.14050314,0.000297,2]
[405380820,1771099838735,-5248.78322556,0.000297,2]
[405380869,1771099847471,-465.12356021,0.000297,2]
[405380870,1771099847481,-1.69586474,0.000298,2]
[405380871,1771099848264,-4095.21018714,0.000298,2]
[405380874,1771100031728,3792.135674,0.000299,120]
[405380929,1771100836107,-154.55954182,0.00029704,2]
[405380931,1771100967096,-364.59466729,0.00024953,3]
[405380932,1771100967117,-152.0,0.00025,7]
[405380960,1771101038535,-206.0,0.00029298,2]
[405380961,1771101038545,-1200.0,0.00029298,2]
[405380962,1771101038556,-7175.9655255,0.00029299,2]
[405380963,1771101038591,-1749.36251468,0.00029299,2]
[405380964,1771101038601,-743.00766454,0.00029668,2]
[405380965,1771101038612,-934.46206102,0.00029699,2]
[405380966,1771101038622,-202.33459414,0.00029699,2]
[405380967,1771101038631,-1583.31159978,0.000297,2]
[405380996,1771101046276,-462.74553815,0.000297,2]
[405380998,1771101046709,-1789.99837357,0.000297,2]
[405381008,1771101429296,259.9815502,0.00013273,2]
[405381012,1771101688505,300.0,0.00013673,2]
[405381013,1771101688537,300.0,0.00014221,2]
[405381014,1771102023564,500.0,0.00013699,2]
[405381015,1771102034107,-195.18,0.00024113,10]
[405381016,1771102034129,-150.0,0.00025376,2]
[405381017,1771102034149,-935.946397,0.00029,30]
[405381018,1771102034304,-1200.0,0.00029699,2]
[405381019,1771102034326,-22954.35769195,0.000297,2]
[405381032,1771102237803,-696.23266301,0.00029699,2]
[405381113,1771102245029,-109.76733699,0.00029699,2]
[405381114,1771102245039,-3937.00266301,0.000297,2]
[405381115,1771102245052,-463.35792815,0.000297,2]
[405381121,1771102245833,-555.0637968,0.000297,2]
[405381124,1771102262767,161.08710386,0.00013699,2]
[405381125,1771102342468,3.55289614,0.00024113,10]
[405381126,1771103242133,-1412.91269278,0.00027162,7]
[405381127,1771103242155,-160.0,0.00029166,3]
[405381128,1771103242174,-743.00766454,0.00029675,2]
[405381129,1771103242193,-300.0,0.00029699,2]
[405381130,1771103242212,-98.58792791,0.000297,2]
[405381188,1771103437960,-743.00766454,0.00029692,2]
[405381189,1771103437972,-8339.44304872,0.000297,2]
[405381190,1771103437984,-501.86209984,0.000297,2]
[405381191,1771103437995,-1332.3077967,0.00029719,2]
[405381192,1771103438011,-1664.120273,0.00029719,2]
[405381193,1771103438021,-150.0,0.00029726,2]
[405381194,1771103438031,-150.0,0.00029781,2]
[405381195,1771103438041,-19456.32394812,0.000298,2]
[405381196,1771103438051,-151.0,0.000298,7]
[405381197,1771103438062,-154.518106,0.000298,7]
[405381198,1771103438072,-151.0,0.000298,7]
[405381199,1771103438082,-150.0,0.00029836,2]
[405381200,1771103438092,-5266.37,0.0002989,10]
[405381201,1771103438102,-4388.64,0.0002989,10]
[405381202,1771103438112,-164.11201128,0.0002989,2]
[405381203,1771103438123,-171.99,0.000299,7]
[405381204,1771103438134,-161.52,0.000299,7]
[405381205,1771103438149,-3152.1,0.000299,2]
[405381206,1771103438160,-151.0,0.000299,7]
[405381207,1771103438171,-151.0,0.000299,7]
[405381208,1771103438181,-151.0,0.000299,7]
[405381209,1771103438192,-38515.62566159,0.000299,2]
[405381226,1771103445748,-292.615684,0.000298,7]
[405381227,1771103445759,-173.58910289,0.0002989,10]
[405381231,1771103446025,-3483.61089711,0.0002989,10]
[405381232,1771103446034,-37914.58910289,0.000299,2]
[405381251,1771104303388,165.9474586,0.00013699,2]
[405381257,1771104434128,-546.45441616,0.00025,2]
[405381260,1771104547093,-508.90970272,0.00017,2]
[405381261,1771104554089,-400.06856819,0.00017,2]
[405381262,1771104554113,-364.59466729,0.0001782,3]
[405381263,1771104554135,-300.0,0.00017998,2]
[405381264,1771104554155,-502.00812659,0.00017999,2]
[405381265,1771104554179,-32.94452181,0.00017999,2]
[405381266,1771104555576,-467.05547819,0.00017999,2]
[405381267,1771104555598,-500.0,0.00017999,2]
[405381268,1771104555619,-500.0,0.00017999,2]
[405381269,1771104555643,-500.0,0.00017999,2]
[405381270,1771104555669,-500.0,0.00017999,2]
[405381271,1771104555690,-351.68670493,0.00017999,2]
[405381272,1771104555713,-500.0,0.00017999,2]
[405381273,1771104555735,-500.0,0.00017999,2]
[405381274,1771104555757,-500.0,0.00017999,2]
[405381275,1771104555779,-500.0,0.00017999,2]
[405381276,1771104555799,-338.21900629,0.00017999,2]
[405381277,1771104555820,-500.0,0.00017999,2]
[405381278,1771104555838,-333.7457733,0.00017999,2]
[405381279,1771104555858,-500.0,0.00017999,2]
[405381280,1771104555880,-500.0,0.00017999,2]
[405381281,1771104555903,-25731.66510289,0.00018,2]
[405381282,1771104555925,-400.0,0.00019638,2]
[405381283,1771104555948,-101.77489521,0.00024,2]
[405381438,1771104640232,-354.23266859,0.00024,2]
[405381439,1771104640244,-11.54558384,0.00025,2]
[405381440,1771104640255,-152.0,0.00025,7]
[405381441,1771104640265,-75.93044001,0.00025103,2]
[405381467,1771104646093,-74.06955999,0.00025103,2]
[405381468,1771104646105,-1789.73390028,0.00029,2]
[405381469,1771104646116,-672.12115428,0.00029,2]
[405381472,1771104762803,152.0,0.00025,7]
[405381509,1771105651129,-152.0,0.00025,7]
[405381510,1771105651150,-150.0,0.00025103,2]
[405381511,1771105651170,-1200.0,0.00026979,2]
[405381512,1771105651192,-300.0,0.00026989,2]
[405381513,1771105651211,-22219.75575621,0.0002699,2]
[405381514,1771105755102,-191.63,0.00024113,10]
[405381545,1771105839377,-244.448611,0.00026821,2]
[405381546,1771105839387,-202.33459414,0.00026989,2]
[405381547,1771105839397,-2195.31076777,0.0002699,2]
[405381570,1771105846289,-32.64522212,0.0002699,2]
[405381571,1771105846301,-349.103,0.0002699,2]
[405381572,1771105846312,-400.0,0.0002699,2]
[405381573,1771105846324,-334.49123493,0.0002699,2]
[405381574,1771105846412,-932.05018313,0.0002699,2]
[405381575,1771105846423,-15041.93279345,0.0002699,2]
[405381576,1771105846433,-4208.19,0.0002699,10]
[405381577,1771105846443,-39080.21239201,0.00027,2]
[405381580,1771105889695,118.16613159,0.0002589,2]
[405381581,1771106343718,161.08710386,0.00013699,2]
[405381587,1771106837139,-178.15713303,0.00022995,2]
[405381588,1771106934247,-300.0,0.00022995,2]
[405381589,1771106934270,-903.35177971,0.00022996,2]
[405381590,1771106934294,-1605.95871948,0.00022996,2]
[405381591,1771106934316,-2206.80118869,0.00022996,2]
[405381592,1771106955123,-300.0,0.00022996,2]
[405381593,1771106955143,-154.55,0.00024113,10]
[405381594,1771106955164,-172.22355825,0.00025482,2]
[405381595,1771106955186,-982.4361855,0.00025737,2]
[405381596,1771106955209,-112.83386841,0.0002589,2]
[405381597,1771106955234,-973.25209041,0.0002663,2]
[405381598,1771106955255,-188.49193635,0.0002672,5]
[405381708,1771107046503,-1004.46659861,0.000267,2]
[405381717,1771108147172,-216.78297761,0.00016,2]
[405381718,1771108147193,-4627.8914039,0.00017,2]
[405381719,1771108147214,-300.0,0.00017998,2]
[405381720,1771108147234,-389.44346176,0.00017999,2]
[405381721,1771108147255,-500.0,0.00017999,2]
[405381722,1771108147277,-500.0,0.00017999,2]
[405381723,1771108147299,-500.0,0.00017999,2]
[405381724,1771108147322,-500.0,0.00017999,2]
[405381725,1771108147345,-500.0,0.00017999,2]
[405381726,1771108147368,-595.42367602,0.00017999,2]
[405381727,1771108147389,-500.0,0.00017999,2]
[405381728,1771108147411,-500.0,0.00017999,2]
[405381729,1771108147432,-561.81727402,0.00017999,2]
[405381730,1771108147453,-500.0,0.00017999,2]
[405381731,1771108147476,-15221.220109,0.00018,2]
[405381732,1771108147499,-420.0,0.00019638,2]
[405381733,1771108147522,-480.94431564,0.00022992,2]
[405381734,1771108147544,-865.69976814,0.00022992,2]
[405381735,1771108147564,-1537.48278822,0.00022992,2]
[405381736,1771108147587,-777.16913764,0.00023136,2]
[405381737,1771108147609,-551.9295615,0.00023813,2]
[405381738,1771108147633,-150.0,0.00024007,2]
[405381739,1771108147654,-207.0,0.00024201,2]
[405381740,1771108147675,-300.0,0.00024201,2]
[405381741,1771108147697,-429.51682214,0.00024202,2]
[405381742,1771108147716,-773.13027985,0.00024202,2]
[405381743,1771108147736,-1374.45383085,0.00024202,2]
[405381744,1771108147756,-2145.43652659,0.00024202,2]
[405381745,1771108147777,-1272.45479415,0.00024354,2]
[405381746,1771108147797,-203.68549605,0.00024354,2]
[405381747,1771108147816,-500.0,0.00024511,2]
[405381748,1771108147835,-378.0128562,0.0002491,2]
[405381749,1771108147854,-4315.87567177,0.00025,7]
[405381750,1771108147874,-300.0,0.00025472,2]
[405381751,1771108147896,-300.0,0.00025472,2]
[405381752,1771108147916,-300.0,0.00025472,2]
[405381753,1771108147938,-352.82006242,0.0002548,2]
[405381754,1771108147959,-402.81970555,0.0002548,2]
[405381755,1771108147983,-624.78948925,0.00025725,30]
[405381756,1771108205484,169.0,0.00025563,120]
[405381786,1771108233253,168.0,0.00024217,120]
[405381787,1771108234608,168.0,0.00025428,120]
[405381788,1771108236051,168.0,0.00026699,120]
[405381796,1771108237695,-375.21051075,0.00025725,30]
[405381797,1771108237706,-210.8479594,0.00025889,7]
[405381798,1771108237716,-177.0,0.00026007,2]
[405381799,1771108237725,-151.0,0.00026219,2]
[405381800,1771108237735,-211.57362003,0.00026363,2]
[405381801,1771108237745,-1750.38446518,0.00026621,2]
[405381803,1771108237754,-311.38409665,0.00026627,7]
[405381805,1771108237764,-1531.45801594,0.000267,2]
[405381806,1771108237775,-500.0,0.00026719,2]
[405381807,1771108237785,-31.91508555,0.00026719,2]
[405381815,1771108244602,-268.08491445,0.00026719,2]
[405381816,1771108244612,-411.50806365,0.0002672,5]
[405381817,1771108244621,-189.15,0.0002672,3]
[405381818,1771108244631,-151.0,0.0002672,2]
[405381819,1771108244640,-154.615671,0.0002672,2]
[405381820,1771108244650,-151.0,0.0002672,2]
[405381821,1771108244659,-151.0,0.0002672,2]
[405381822,1771108244668,-151.0,0.0002672,2]
[405381823,1771108244677,-151.0,0.0002672,2]
[405381824,1771108244687,-151.0,0.0002672,2]
[405381825,1771108244696,-151.0,0.0002672,2]
[405381826,1771108244705,-157.62,0.0002672,3]
[405381827,1771108244715,-472.89,0.0002672,3]
[405381828,1771108244724,-293.832345,0.0002672,2]
[405381829,1771108244733,-1107.9990059,0.0002672,10]
[405381832,1771108245716,-465.25369931,0.0002672,10]
[405381833,1771108245887,-773.1844467,0.0002672,10]
[405384441,1771108358012,-500.0,0.00023786,2]
[405384442,1771108358049,-500.0,0.00025266,7]
[405384456,1771109431636,-150.0,0.00024468,2]
[405384458,1771109431647,-1233.5231038,0.00025669,2]
[405384459,1771109431657,-348.04229302,0.00026184,7]
[405384460,1771109431667,-415.41526675,0.00026407,7]
[405384461,1771109431678,-335.73289842,0.0002643,7]
[405384462,1771109431688,-162.0,0.00026468,2]
[405384463,1771109431698,-1750.38446518,0.0002662,2]
[405384464,1771109431708,-300.0,0.00026718,2]
[405384465,1771109431718,-1755.62728157,0.00026719,2]
[405384466,1771109431729,-999.59033666,0.00026719,2]
[405384467,1771109431740,-172.0,0.00026719,2]
[405384468,1771109431753,-229.09080822,0.00026719,2]
[405384469,1771109431764,-455.78582659,0.00026719,2]
[405384470,1771109431776,-544.24329301,0.00026719,2]
[405384471,1771109431786,-166.104216,0.0002672,2]
[405384472,1771109431796,-151.0,0.0002672,2]
[405384473,1771109431806,-151.0,0.0002672,2]
[405384474,1771109431815,-151.0,0.0002672,2]
[405384475,1771109431825,-64.91886878,0.0002672,3]
[405384483,1771109437796,-250.32113122,0.0002672,3]
[405384485,1771109437806,-205.71500587,0.0002672,2]
[405384487,1771109437815,-358.88634063,0.0002672,2]
[405384489,1771109437825,-409.74566205,0.0002672,2]
[405384491,1771109437839,-4087.29943032,0.0002672,10]
[405384493,1771109437856,-1098.44056968,0.0002672,10]
[405384495,1771109437866,-8960.35,0.0002672,10]
[405384497,1771109437879,-7466.96,0.0002672,10]
[405384498,1771109437889,-2083.27607204,0.0002672,2]
[405384564,1771110574180,-500.0,0.00023973,2]
[405384565,1771110574201,-231.0,0.0002419,2]
[405384566,1771110574224,-500.0,0.00024406,2]
[405384567,1771110574245,-500.0,0.00024951,2]
[405384568,1771110574266,-94.41510426,0.00025195,7]
[405384618,1771110638068,-405.58489574,0.00025195,7]
[405384619,1771110638078,-189.28923832,0.00025384,2]
[405384620,1771110638088,-340.72062897,0.00025384,2]
[405384621,1771110638099,-605.11983705,0.00025384,2]
[405384622,1771110638109,-1000.0,0.00025764,30]
[405384623,1771110638119,-529.38588241,0.0002645,7]
[405384624,1771110638128,-343.935964,0.00026614,2]
[405384625,1771110638139,-273.63875837,0.00026614,2]
[405384626,1771110638158,-300.0,0.00026614,2]
[405384627,1771110638169,-656.6853049,0.00026615,2]
[405384628,1771110638180,-7974.8193143,0.00026615,2]
[405384629,1771110638191,-211.87154078,0.00026619,2]
[405384630,1771110638203,-3028.75782652,0.0002662,2]
[405384631,1771110638213,-500.0,0.00026719,2]
[405384632,1771110638223,-254.5391126,0.0002672,2]
[405384633,1771110638233,-380.83251605,0.0002672,2]
[405384634,1771110638242,-187.06151494,0.0002672,2]
[405384635,1771110638254,-458.17040268,0.0002672,2]
[405384636,1771110638267,-315.64160499,0.0002672,2]
[405384637,1771110638277,-370.28701056,0.0002672,2]
[405384638,1771110638287,-151.0,0.0002672,2]
[405384639,1771110638298,-151.0,0.0002672,2]
[405384640,1771110638312,-151.0,0.0002672,2]
[405384641,1771110638323,-151.0,0.0002672,2]
[405384642,1771110638333,-151.0,0.0002672,2]
[405384643,1771110638342,-151.0,0.0002672,2]
[405384644,1771110638352,-151.0,0.0002672,2]
[405384645,1771110638362,-151.0,0.0002672,2]
[405384646,1771110638373,-151.0,0.0002672,2]
[405384647,1771110638384,-151.0,0.0002672,2]
[405384648,1771110638395,-151.0,0.0002672,2]
[405384649,1771110638407,-281.641984,0.0002672,2]
[405384650,1771110638417,-170.979,0.0002672,14]
[405384651,1771110638427,-676.3585485,0.0002672,2]
[405384652,1771110638440,-813.71063517,0.0002672,2]
[405384653,1771110638450,-657.62973076,0.0002672,2]
[405384654,1771110638459,-151.0,0.0002672,2]
[405384655,1771110638468,-151.0,0.0002672,2]
[405384656,1771110638479,-151.0,0.0002672,2]
[405384657,1771110638490,-151.0,0.0002672,2]
[405384658,1771110638500,-1859.7183579,0.0002672,10]
[405384681,1771111764150,-216.78297761,0.00016,2]
[405384682,1771111764172,-150.0,0.000165,2]
[405384683,1771111764193,-4627.8914039,0.00017,2]
[405384684,1771111764214,-285.0,0.000185,2]
[405384685,1771111764234,-357.21084549,0.00024899,2]
[405384686,1771111764256,-300.0,0.00024999,2]
[405384687,1771111764277,-4315.87567177,0.00025,7]
[405384688,1771111764298,-1113.47567836,0.00025,30]
[405384689,1771111764318,-7904.91883924,0.00025598,2]
[405384711,1771111831983,-372.12538168,0.00017569,2]
[405384713,1771111831993,-190.15840018,0.00025597,2]
[405384718,1771111832044,-309.84159982,0.00025597,2]
[405384719,1771111832056,-187.15840018,0.00025597,2]
[405384726,1771111838281,-312.84159982,0.00025597,2]
[405384727,1771111838292,-500.0,0.00025597,2]
[405384728,1771111838303,-500.0,0.00025597,2]
[405384729,1771111838315,-500.0,0.00025597,2]
[405384730,1771111838327,-285.88130842,0.00025597,2]
[405384731,1771111838338,-222.55701731,0.00025597,2]
[405384762,1771111845548,-166.88644445,0.00025597,2]
[405384763,1771111845558,-4061.47856796,0.00025598,2]
[405384764,1771111845568,-500.0,0.00025705,7]
[405384765,1771111845579,-354.06428482,0.0002599,2]
[405384766,1771111845588,-2000.0,0.0002623,2]
[405384767,1771111845597,-2000.0,0.0002623,2]
[405384768,1771111845606,-2000.0,0.0002623,2]
[405384770,1771111845616,-2000.0,0.0002623,2]
[405384771,1771111845625,-2000.0,0.0002623,2]
[405384772,1771111845635,-2000.0,0.0002623,2]
[405384773,1771111845644,-2000.0,0.0002623,2]
[405384774,1771111845782,-2000.0,0.0002623,2]
[405384775,1771111845792,-2000.0,0.0002623,2]
[405384776,1771111845801,-2000.0,0.0002623,2]
[405384777,1771111845811,-2000.0,0.0002623,2]
[405384778,1771111845821,-2000.0,0.0002623,2]
[405384779,1771111845831,-206.33743014,0.0002623,2]
[405384784,1771111958261,-675.1886548,0.00024791,30]
[405384785,1771111958288,-500.0,0.00024952,2]
[405384786,1771111958315,-159.88402675,0.00024976,2]
[405384787,1771111958334,-336.37401617,0.00025384,2]
[405384788,1771111958344,-300.0,0.00025596,2]
[405384789,1771111958353,-38.81463863,0.00025597,2]
[405384790,1771111958365,-461.18536137,0.00025597,2]
[405384791,1771111958374,-38.81463863,0.00025597,2]
[405384792,1771111958386,-159.88402675,0.00025597,2]
[405384793,1771111958397,-13.36767936,0.00025597,2]
[405384795,1771112646751,481.26,0.00030137,120]
[405384796,1771112972155,-211.29474117,0.00022909,2]
[405384797,1771112972177,-500.0,0.00023629,2]
[405384798,1771112972198,-150.0,0.00024238,2]
[405384799,1771112972217,-300.0,0.00024983,2]
[405384800,1771112972237,-300.0,0.00024983,2]
[405384801,1771112972255,-300.0,0.00024984,2]
[405384802,1771112972274,-300.0,0.00024984,2]
[405384803,1771112972293,-300.0,0.00024984,2]
[405384804,1771112972313,-1200.0,0.00024984,2]
[405384805,1771112972332,-2001.3079517,0.00024985,2]
[405384806,1771112972352,-982.4361855,0.00024985,2]
[405384807,1771112972371,-1477.4101567,0.00024985,2]
[405384808,1771112972393,-2176.4655851,0.00024985,2]
[405384809,1771112972414,-499.89956495,0.00025,2]
[405384810,1771112972435,-568.15488898,0.00025384,2]
[405384811,1771112972457,-1009.04308282,0.00025384,2]
[405384812,1771112972478,-432.63082299,0.00025384,2]
[405384813,1771112972500,-500.0,0.00025647,7]
[405384814,1771112972522,-500.0,0.00025686,2]
[405384815,1771112972543,-500.0,0.00025686,2]
[405384816,1771112972564,-380.85108826,0.00025686,2]
[405384817,1771112972586,-500.0,0.00025686,2]
[405384818,1771112972607,-500.0,0.00025686,2]
[405384819,1771112972628,-500.0,0.00025686,2]
[405384820,1771112972649,-408.0566499,0.00025686,2]